Workbook

Sheet Instructions
A1: GENERAL INSTRUCTIONS
B3: The tabs of this workbook contain templates of the various Compulsory and Security Surplus Calculation forms.
B5: This workbook contains macros, if Macro Security is set to high or macros are disabled, the templates will not function properly.
B6: Calculations will not function correctly if a tab is moved to a new workbook, Macros apply to the entire workbook, not a single tab.
B8: The print area is boxed off for visual reference, all templates print to a single page with the exception of the MPP calculation.
B10: Input cells are filled Yellow.
B12: There is an input cell to the right of the print area where the as of date can be entered. Use MM/DD/YYYY format.
B14: There is an input cell to the right of the print area where the company could change the Minimum Compulsory Requirement.
B15: The standard Minimum Compulsory Requirement is 2,000,000, except for LHSOs and HMOs.
B16: The standard Minimum Compulsory Requirement for LHSOs is 75,000.
B17: The standard Minimum Compulsory Requirement for HMOs is 750,000.
B18: There is not a minimum capital requirement for Mortgage Guaranty Insurers completing the Minimum Policyholder Position form.
B20: Most forms have a column titled "Other", this column provides an avenue where the WI OCI can adjust the factors higher or lower, or establish additional factors.
B21: This column can be used freely in the template, but use of this column in formal filings will only be allowed by order of this office.
A24: Reference Guide
B25: The reference guides provided below are periodically updated to align with changes to the statutory statements.
B32: OCI 22-334 (R 11/2023)

Sheet LIFE
R5: LIFE and FRATERNAL INSURERS
R6: COMPULSORY AND SECURITY SURPLUS CALCULATION
R7: Ref: Section Ins 51.80, Wis. Adm. Code | U7: DATE INPUT
U8: 2023-09-30
C10: Company Name | Q10: NAIC Number | V10: Minimum Compulsory Requirement
V11: 2000000
C13: =UPPER("NATIONWIDE BUSINESS FOR 12 MONTHS ENDING "&TEXT(U8,"MMMM DD, YYYY")) -> NATIONWIDE BUSINESS FOR 12 MONTHS ENDING SEPTEMBER 30, 2023
I16: [A] | L16: [B] | N16: [C] | O16: [D] | P16: [E] | Q16: [F] | R16: [G]
C17: 1. | E17: Complete the following | I17: Individual Life | L17: Group Life and | N17: Medicare Part D | O17: Annuities, Other | P17: Variable Life and | Q17: Other | R17: Totals
E18: for nationwide business: | I18: and A&H (including | L18: A&H (including | N18: Prescription Drug | O18: Considerations and | P18: Annuity | R18: Columns
I19: Credit) | L19: Credit) | N19: Plans | O19: Deposit Type Funds | R19: A + B + C + D + E + F
D20: a. | E20: Net Premiums Written | R20: =SUM(H20:Q20) -> 0
D22: b. | E22: Policyholder Dividends | R22: =SUM(H22:Q22) -> 0
D24: c. | E24: Premiums Ceded to
E25: Unauthorized Reinsurers | R25: =SUM(H25:Q25) -> 0
D27: d. | E27: Modified Coinsurance
E28: Premium Ceded to
E29: Authorized Reinsurers | R29: =SUM(H29:Q29) -> 0
D31: e. | E31: Modified Coinsurance
E32: Premiums Assumed | R32: =SUM(H32:Q32) -> 0
D34: f. | E34: Adjusted Premium
E35: [Line 1a - 1b + 1c + 1d - 1e ] | H35: =H20-H22+H25+H29-H32 -> 0 | K35: =K20-K22+K25+K29-K32 -> 0 | N35: =N20-N22+N25+N29-N32 -> 0 | O35: =O20-O22+O25+O29-O32 -> 0 | P35: =P20-P22+P25+P29-P32 -> 0 | Q35: =Q20-Q22+Q25+Q29-Q32 -> 0 | R35: =SUM(H35:Q35) -> 0
D36: g. | E36: Factor* | H36: 0.15 | K36: 0.1 | N36: 0.07 | O36: 0.075 | P36: 0.02
D37: h. | E37: Totals (Line d X Line e) | H37: =MAX(0,H35*H36) -> 0 | K37: =MAX(0,K35*K36) -> 0 | N37: =MAX(0, N35* N36) -> 0 | O37: =MAX(0, O35*O36) -> 0 | P37: =MAX(0, P35*P36) -> 0 | Q37: =MAX(0,Q35*Q36) -> 0
C39: 2 | E39: Calculation of Compulsory Requirement
E40: Reserve for Annuities and Deposit Administration Funds
D41: a. | E41: Net Annuity Reserves
D42: b. | E42: Exhibit 5 Annuity Reserve Write-ins
D43: c. | E43: Deposit Type Funds
D44: d. | E44: Total Reserve for Annuities and Deposit Administration Funds [Line 2a + Line 2b + Line 2c] | R44: =R41+R42+R43 -> 0
D45: e. | E45: Total Annuity and Deposit Administration Fund Reserve Component [Line 2d x .02] | R45: =R44*0.02 -> 0
D46: f. | E46: Total Annuity and Deposit Administration Fund Premium Component [Line 1h, Cols. D] | R46: =O37 -> 0
D47: g. | E47: Compulsory Surplus Requirement [Greater of (Line 1h, sums of Cols. A + B + C + E + F) + (Greater of Line 2e or 2f) and Minimum Compulsory Requirement | R47: =MAX(V11,SUM(H37,K37,N37,P37,Q37) + MAX(R45,R46)) -> 2000000
C48: 3 | E48: Total Adjust Premium [Line 1f, Col. G] | R48: =R35 -> 0
C49: 4 | E49: Security Surplus Factor [Based on Line 3] | R49: =secFactor(R48) -> 1.4
C50: 5 | E50: Security Surplus Requirement [Line 2g x Line 4] | R50: =R47*R49 -> 2800000
C51: 6 | E51: Calculation of Adjusted Surplus
D52: a. | E52: Admitted Assets
D53: b. | E53: Invested Assets in Excess of Limitations
D54: c. | E54: Investments in Insurance Subsidiaries
D55: d. | E55: Security Surplus Excess of Insurance Subsidiaries
D56: e. | E56: Assets for Compulsory/Security Surplus [Line 6a - Line 6b - Line 6c + Line 6d] | R56: =R52-R53-R54+R55 -> 0
D57: f. | E57: Liabilities
D58: g. | E58: Adjusted Surplus [Line 6e - Line 6f] | R58: =R56-R57 -> 0
C59: 7 | E59: Compulsory Surplus Requirement [Line 2] | R59: =R47 -> 2000000
C60: 8 | E60: Total Compulsory Surplus Excess (Deficiency) [Line 6g - Line 7] | R60: =R58-R59 -> -2000000
C61: 9 | E61: Total Security Surplus Excess (Deficiency) [Line 6g - Line 5] | R61: =R58-R50 -> -2800000
C63: OCI 22_009 (R 10/2023)

Sheet LSHO
L5: LIMITED SERVICE HEALTH ORGANIZATION
L6: COMPULSORY AND SECURITY SURPLUS CALCULATION
L7: Ref: Section Ins 51.80 Wis. Adm. Code | O7: DATE
O8: 2023-09-30
C10: Company Name | L10: NAIC CODE | O10: Minimum Compulsory Requirement
O11: 75000
C13: =UPPER("NATIONWIDE BUSINESS FOR 12 MONTHS ENDING "&TEXT(O8, "MMMM DD, YYYY")) -> NATIONWIDE BUSINESS FOR 12 MONTHS ENDING SEPTEMBER 30, 2023
C15: 1 | E15: Complete the following | J15: [A] | K15: [B] | L15: [C]
E16: for nationwide business | J16: Incidental Indemnity | K16: LSHO | L16: Total Premium
J17: Premium | K17: Premium | L17: [A + B]
D18: a. | E18: Net Premiums Earned
E19: (Page 4, Col. 2, Line 2 + 3)
D20: b. | E20: Factor
J21: 0.1 | K21: 0.03
D22: c. | E22: Total [Line 1a x 1b]
J23: =MAX(0,J19*J21) -> 0 | K23: =MAX(0,K19*K21) -> 0
C25: 2 | E25: Compulsory Surplus Requirement [Greater of (Line 1c, Cols. A + B) and Minimum Compulsory Requirement | L25: =MAX(O11,SUM(J23,K23)) -> 75000
C26: 3 | E26: Net Premiums Earned | L26: =L19 -> 0
C27: 4 | E27: Security Surplus Factor | L27: =secFactor(R58) -> 1.4
C28: 5 | E28: Security Surplus Requirement | L28: =L25*L27 -> 105000
C29: 6 | E29: Calculation of Adjusted Surplus
D30: a | E30: Admitted Assets (Page 2, Col. 3, Line 28)
D31: b | E31: Irrevocable Letter of Credit on file with OCI
D32: c | E32: Assets for Compulsory Surplus | L32: =L30+L31 -> 0
D33: d | E33: Liabilities (Page 3, Col. 3, Line 24)
D34: e | E34: Adjusted Surplus [Line 6c - Line 6d) | L34: =L32-L33 -> 0
C35: 7 | E35: Compulsory Surplus Requirement [Line 2] | L35: =L25 -> 75000
C36: 8 | E36: Compulsory Surplus Excess (Deficiency) [Line 6e - Line 7] | L36: =L34-L35 -> -75000
C37: 9 | E37: Security Surplus Excess (Deficiency) [Line 6e - Line 5] | L37: =L34-L28 -> -105000
C39: OCI 22_333 (R 09/2021)

Sheet HMO
M5: HEALTH MAINTENANCE ORGANIZATION
M6: COMPULSORY AND SECURITY SURPLUS CALCULATION
M7: Ref: Ins 51.80 Wis. Adm. Code, Sections 623.11, 611.26(1), 609.97, and 609.98 Wis. Stat. | Q7: DATE INPUT
Q8: 2023-09-30
C10: Company Name | M10: NAIC Code
Q11: Minimum Compulsory Requirement
Q12: 750000
C13: =UPPER("NATIONWIDE BUSINESS FOR 12 MONTHS ENDING "&TEXT(Q8, "MMMM DD, YYYY")) -> NATIONWIDE BUSINESS FOR 12 MONTHS ENDING SEPTEMBER 30, 2023
C15: 1 | E15: Complete the following for | I15: [A] | J15: [B] | K15: [C] | L15: [D] | M15: [E]
E16: nationwide business | I16: Incidental Indemnity | J16: Standalone Medicare | K16: Other | L16: HMO | M16: Total
I17: Premium | J17: Part D Plans | K17: Premium | L17: Premium | M17: Premium | P17: 0.03 | Q17: Compulsory Factor for HMO business is 3% for HMOs whose covered
D18: a. | E18: Net Premiums Earned | P18: 0.06 | Q18: expense ratio is greater than 90% and 6% for those whose covered expense
E19: (Page 4, Col. 2, Line 2 + 3) | M19: =SUM(I19+J19+K19+L19) -> 0 | Q19: ratio is less than 90%, but greater than 65%. There is a dropdown list to
D20: b. | E20: Factor | Q20: select either 3% or 6% in cell L21.
I21: 0.1 | J21: 0.075 | L21: 0.06
D22: c. | E22: Total [Line 1 * Line 2]
I23: =MAX(0,I19*I21) -> 0 | J23: =MAX(0,J19*J21) -> 0 | K23: =MAX(0,K19*K21) -> 0 | L23: =MAX(0,L19*L21) -> 0
C25: 2 | E25: Compulsory Surplus Requirement [Greater of (Line 1c., Cols. A + B + C + D) and Minimum Compulsory Requirement] | M25: =MAX(750000,SUM(I23+J23+K23+L23)) -> 750000
C26: 3 | E26: Net Premiums Earned [Line 1a., Col. D] | M26: =M19 -> 0
C27: 4 | E27: Security Surplus Factor [Based on Line 3] | M27: =secFactor(M26) -> 1.4
C28: 5 | E28: Security Surplus Requirement [Line 2 * Line 4] | M28: =M25*M27 -> 1050000
C29: 6 | E29: Calculation of Adjusted Surplus
D30: a. | E30: Admitted Assets (Page 2, Line 28, Col. 3)
D31: b. | E31: Invested Assets in Excess of Limitations
D32: c. | E32: Investments in Insurance Subsidiaries
D33: d. | E33: Security Surplus Excess of Insurance Subsidiaries
D34: e. | E34: Security Fund Deposits under s. 609.98, Wis. Stat., Included in Line 6a
D35: f. | E35: Assets for Compulsory Surplus [Line 6a - Line 6b - Line 6c + Line 6d - Line 6e] | M35: =M30-M31-M32+M33+M34 -> 0
D36: g. | E36: Liabilities (Page 3, Col. 3, Line 24)
D37: h. | E37: Adjusted Surplus [Line 6f - Line 6g] | M37: =M35-M36 -> 0
C38: 7 | E38: Compulsory Surplus Requirement [Greater of (Line 1c., Cols. A + B + C + D) and $750,000] | M38: =M25 -> 750000
C39: 8 | E39: Compulsory Surplus Excess (Deficiency) [Line 6h - Line 7] | M39: =M37-M38 -> -750000
C40: 9 | E40: Security Surplus Excess (Deficiency) [Line 6h - Line 5] | M40: =M37-M28 -> -1050000
C42: OCI 22_061 (R 09/2021)

Sheet HEALTH
M5: LIFE and HEALTH INSURERS FILING ON THE HEALTH BLANK
M6: COMPULSORY AND SECURITY SURPLUS CALCULATION
M7: Ref: Section Ins 51.80 Wis. Adm. Code | P7: DATE
P8: 2023-09-30
C10: Company Name | M10: NAIC CODE
P11: Minimum Compulsory Requirement
P12: 2000000
C13: =UPPER("NATIONWIDE BUSINESS FOR 12 MONTHS ENDING "&TEXT(P8, "MMMM DD, YYYY")) -> NATIONWIDE BUSINESS FOR 12 MONTHS ENDING SEPTEMBER 30, 2023
C15: 1 | D15: Complete the following | G15: [A] | H15: [B] | I15: [C] | J15: [D] | K15: [E] | L15: [F] | M15: [G]
D16: for nationwide | G16: Individual Life, | H16: Group Life | I16: Medicare Part D | J16: Annuities, Deposits, and | K16: All Other | L16: Other | M16: Totals Columns
D17: business: | G17: Accident & Health | H17: Accident & Health | I17: Prescription Drug Plans | J17: Other Considerations | K17: Insurance | M17: [A + B + C + D + E + F]
D18: a. | E18: Net Premium
E19: Income
M20: =G20+H20+I20+J20+K20+L20 -> 0
D21: b. | E21: Factor
G22: 0.15 | H22: 0.1 | I22: 0.07 | J22: 0.075 | K22: 0.2
D23: c. | E23: Totals
E24: [Line 1a x Line 1b] | G24: =MAX(0,(G20*G22)) -> 0 | H24: 0 | I24: 0 | J24: 0 | K24: 0 | L24: 0
C26: 2 | E26: Compulsory Surplus Requirement [Greater of (Line 1c, Cols. A + B + C + D + E + F) and Minimum Compulsory Requirement | M26: =MAX((G24+H24+I24+J24+K24+L24),P12) -> 2000000
C27: 3 | E27: Net Premiums Written [Line 1a, Col. G] | M27: =M20 -> 0
C28: 4 | E28: Security Surplus Factor [Based on Line 3] | M28: =secFactor(M27) -> 1.4
C29: 5 | E29: Security Surplus Requirement [Line 2 x Line 4] | M29: =M26*M28 -> 2800000
C30: 6 | E30: Calcualtion of Adjusted Surplus
D31: a. | E31: Admitted Assets
D32: b. | E32: Invested Assets in Excess of Limitations
D33: c. | E33: Investments in Insurance Subsidiaries
D34: d. | E34: Security Surplus Excess of Insurance Subsidiaries
D35: e. | E35: Assets for Compulsory Surplus [Line 6a - Line 6b - Line 6c + Line 6d] | M35: =M31-M32-M33+M34 -> 0
D36: f. | E36: Liabilities
D37: g. | E37: Adjusted Surplus | M37: =M35-M36 -> 0
C38: 7 | E38: Compulsory Surplus Requirement [ Line 2] | M38: =M26 -> 2000000
C39: 8 | E39: Compulsory Surplus Exces (Deficiency) [Line 6g - Line 7] | M39: =M37-M38 -> -2000000
C40: 9 | E40: Security Surplus Excess (Deficiency) [ Line 6g - Line 5] | M40: =M37-M29 -> -2800000
C42: OCI 22_310 (R 02/2023)

Sheet MPP
N5: MORTGAGE GUARANTY INSURERS
N6: REPORT ON MINIMUM POLICYHOLDER POSITION
N7: Ref: Section Ins 3.09, Wis. Adm. Code and Section 623.11, Wis. Stat. | Q7: DATE
Q8: 2023-09-30
C10: Company Name | N10: NAIC Code
C13: =UPPER("NATIONWIDE BUSINESS FOR 12 MONTHS ENDING "&TEXT(Q8, "MMMM DD, YYYY")) -> NATIONWIDE BUSINESS FOR 12 MONTHS ENDING SEPTEMBER 30, 2023
K15: [A] | L15: [B] | M15: [C] | N15: [D]
C16: FIRST LIENS - [Ins. 3.09(5)(c),(d)] | K16: Direct | L16: Assumed | M16: Ceded | N16: [A + B - C]
C17: 1 | E17: Individual Loans [Ins 3.09 (5)©]
D18: a. | E18: Loan-to-value more than 75% | N18: =K18+L18-M18 -> 0
D19: b. | E19: Loan-to-value more than 50-75% | N19: =K19+L19-M19 -> 0
D20: c. | E20: Loan-to-value more than 50% | N20: =K20+L20-M20 -> 0
D21: d. | E21: Total Individual Loans [Line 1a + Line 1b + Line 1c] | K21: =K18+K19+K20 -> 0 | L21: =L18+L19+L20 -> 0 | M21: =M18+M19+M20 -> 0 | N21: =N18+N19+N20 -> 0
C22: 2 | E22: Group Loans [Ins 3.09 (5)(d)]
D23: a. | E23: Equity 20-50%, or equity plus prior insurance or a
E24: deductible 25-55% | N24: =K24+L24-M24 -> 0
D25: b. | E25: Equity less than 20%, or equity plus prior insurance or a
E26: deductible less than 25% | N26: =K26+L26-M26 -> 0
D27: c. | E27: Equity more than 20%, or equity plus prior insurance or a
E28: deductible less than 25% | N28: =K28+L28-M28 -> 0
D29: d. | E29: Total Group Loans [Line 2a + Line 2b + Line 2c] | K29: =K24+K26+K28 -> 0 | L29: =L24+L26+L28 -> 0 | M29: =M24+M26+M28 -> 0 | N29: =N24+N26+N28 -> 0
C30: 3 | E30: Total First Liens [Lines 1d + 2d] | K30: =K21+K29 -> 0 | L30: =L21+L29 -> 0 | M30: =M21+M29 -> 0
C32: JUNIOR LIENS - [Ins 3.09 (5)(f),(d)]
C33: 4 | E33: Individual Loans [Ins 3.09 (5)(f)]
D34: a. | E34: Loan-to-value more than 75% | N34: =K34+L34-M34 -> 0
D35: b. | E35: Loan-to-value more than 50-75% | N35: =K35+L35-M35 -> 0
D36: c. | E36: Loan-to-value less than 50% | N36: =K36+L36-M36 -> 0
D37: d. | E37: Total Individual Loans [Line 4a + Line 4b + Live 4c] | K37: =K34+K35+K36 -> 0 | L37: =L34+L35+L36 -> 0 | M37: =M34+M35+M36 -> 0 | N37: =N34+N35+N36 -> 0
C38: 5 | E38: Group Loans [Ins 3.09 (5)(d)]
D39: a. | E39: Equity 20-50%, or equity plus prior insurance or a
E40: deductible 25-55% | N40: =K40+L40-M40 -> 0
D41: b. | E41: Equity less than 20%, or equity plus prior insurance or a
E42: deductible less than 25% | N42: =K42+L42-M42 -> 0
D43: c. | E43: Equity more than 20%, or equity plus prior insurance or a
E44: deductible less than 25% | N44: =K44+L44-M44 -> 0
D45: d. | E45: Total Group Loans [Line 5a + Line 5b + Line 5c] | K45: =K39+K41+K43 -> 0 | L45: =L39+L41+L43 -> 0 | M45: =M39+M41+M43 -> 0 | N45: =K45+L45-M45 -> 0
C46: 6 | E46: Total Junior Liens | K46: =K37+K45 -> 0 | L46: =L37+L45 -> 0 | M46: =M37+M45 -> 0 | N46: =N45+N37 -> 0
C48: 7 | E48: Leases [Ins 3.09 (5)(g)] | N48: =K48+L48-M48 -> 0
C49: 8 | E49: Deduction of individual or group loans for which the insurer | N49: =K49+L49-M49 -> 0
E50: has established a Loss and LAE reserve is greater than or
E51: equal to the MPP for said loan.
C52: 9 | E52: Total Minimum Policyholders Position [Line 3 + Line 6 + Line 7 + Line 8] | K52: =K30+K46+K48+K49 -> 0 | L52: =L30+L46+L48+L49 -> 0 | M52: =M30+M46+M48+M49 -> 0 | N52: =K52+L52-M52 -> 0
E53: EXCESS POLICYHOLDER POSITION
C55: 10 | E55: Surplus as Regards Policyholders
D56: a. | E56: Admitted Assets
D57: b. | E57: Invested Assets in Excess of Limitations
D58: c. | E58: Investments in Insurance Subsidiaries
D59: d. | E59: Excess Security Surplus/Minimum Policyholder Position of Subsidiaries
D60: e. | E60: Assets for Total Policyholder Position [Line 10a - Line 10b - Line 10c + Line 10d] | N60: =N56-N57-N58+N59 -> 0
D61: f. | E61: Liabilities
D62: g. | E62: Adjusted Surplus | N62: =N60-N61 -> 0
C63: 11 | E63: Deferred Risk Premium Maintained in Unearned Premium Reserve [Ins 3.09 (13)(a)]
C64: 12 | E64: Contingency Reserve [Ins 3.09 (14)]
C65: 13 | E65: Loss Reserves on Specified Loans
C66: 14 | E66: Total Policyholder Position | N66: =N62+N63+N64-N65 -> 0
C67: 15 | E67: Excess of Policyholder Position over Minimum Policyholders Position, Redundancy or (Deficiency) [Line 14 less Line 9] | N67: =N66-N52 -> 0
C69: OCI 22_091 (R 09/2021)

Sheet P&C
R5: PROPERTY AND CASUALTY INSURERS (excluding Mortgage Guaranty)
R6: COMPULSORY AND SECURITY SURPLUS CALCULATION
R7: Ref: Section Ins 51.80, Wis. Adm. Code | U7: DATE
U8: 2023-09-30
C10: Company Name | Q10: NAIC Number | U10: Minimum Compulsory Requirement
U11: 2000000
C13: =UPPER("NATIONWIDE BUSINESS FOR 12 MONTHS ENDING "&TEXT(U8, "MMMM DD, YYYY")) -> NATIONWIDE BUSINESS FOR 12 MONTHS ENDING SEPTEMBER 30, 2023
I16: [A] | L16: [B] | N16: [C] | O16: [D] | P16: [E] | Q16: [F] | R16: [G]
C17: 1. | E17: Complete the following | I17: Individual | L17: Group | N17: Medicare Part D | O17: Medical Malpractice | P17: All Other | Q17: Other | R17: Totals
E18: for nationwide business: | I18: Accident & Health | L18: Accident & Health | N18: Prescription Drug | R18: Columns
N19: Plans | R19: [ A + B + C + D + E + F]
D20: a. | E20: Net Premiums Written
R22: =SUM(H22:Q22) -> 0
D23: b. | E23: Policyholder Dividends
R25: =SUM(H25:Q25) -> 0
D26: c. | E26: Premiums Ceded to
E27: Unauthorized Reinsurers
R28: =SUM(H28:Q28) -> 0
D29: d. | E29: Adjusted Premium
E30: [Line 1a - 1b + 1c] | H30: =H22-H25+H28 -> 0 | K30: =K22-K25+K28 -> 0 | N30: =N22-N25+N28 -> 0 | O30: =O22-O25+O28 -> 0 | P30: =P22-P25+P28 -> 0 | Q30: =Q22-Q25+Q28 -> 0 | R30: =SUM(H30:Q30) -> 0
D31: g. | E31: Factor* | H31: 0.15 | K31: 0.1 | N31: 0.07 | O31: 0.3 | P31: 0.2
D32: h. | E32: Totals (Line d X Line e) | H32: =MAX(0,H30*H31) -> 0 | K32: =MAX(0,K30*K31) -> 0 | N32: =MAX(0, N30* N31) -> 0 | O32: =MAX(0, O30*O31) -> 0 | P32: =MAX(0, P30*P31) -> 0 | Q32: =MAX(0,Q30*Q31) -> 0
C34: 2 | E34: Compulsory Surplus Requirement [Greater of (Line 1f., Cols A + B + C + D + E + F) and Minimum Compulsory Requirement] | R34: =MAX(U11,SUM(H32+K32+N32+O32+P32+Q32)) -> 2000000
C35: 3 | E35: Total Adjusted Premium [Line 1d., Col G] | R35: =R30 -> 0
C36: 4 | E36: Security Surplus Factor [Based on Line 3] | R36: =secFactor(R35) -> 1.4
C37: 5 | E37: Security Surplus Requirement [Line 2 x Line 4] | R37: =R34*R36 -> 2800000
C38: 6 | E38: Calculation of Adjusted Surplus
D39: a. | E39: Admitted Assets
D40: b. | E40: Invested Assets in Excess of Limitations
D41: c. | E41: Investments in Insurance Subsidiaries
D42: d. | E42: Security Surplus Excess of Insurance Subsidiaries
D43: e. | E43: Assets for Compulsory/Security Surplus [Line 6a - Line 6b - Line 6c + Line 6d] | R43: =R39-R40-R41+R42 -> 0
D44: f. | E44: Liabilities
D45: g. | E45: Non-Tabular Reserve Discounting
D46: h. | E46: Adjusted Surplus [Line 6e - Line 6f - Line 6g] | R46: =R43-R44-R45 -> 0
C47: 7 | E47: Compulsory Surplus Requirement [Line 2] | R47: =R34 -> 2000000
C48: 8 | E48: Total Compulsory Surplus Excess (Deficiency) [Line 6g - Line 7] | R48: =R46-R47 -> -2000000
C49: 9 | E49: Total Security Surplus Excess (Deficiency) [Line 6g - Line 5] | R49: =R46-R37 -> -2800000
C51: OCI 22_008 (R 10/2023)
